bitfinex/quotes_BTCUSD_20250326
["timestamp","ask_amount","ask_price","bid_price","bid_amount"]
[1742997022275,0.14666246,87792.0,87791.0,0.002]
[1742997022482,0.14666246,87792.0,87791.0,0.01671045]
[1742997022483,0.27373579,87792.0,87791.0,0.01671045]
[1742997022683,0.26873579,87792.0,87791.0,0.01671045]
[1742997023106,0.29539399,87792.0,87791.0,0.01671045]
[1742997023271,0.59539399,87792.0,87791.0,0.01671045]
[1742997023714,0.59539399,87792.0,87791.0,0.01771045]
[1742997024112,0.67859399,87792.0,87791.0,0.0031696]
[1742997024321,1.11545599,87792.0,87791.0,0.0031696]
[1742997024741,1.21245599,87792.0,87791.0,0.0031696]
[1742997024956,1.07099799,87792.0,87791.0,0.0031696]
[1742997025583,1.08216846,87792.0,87791.0,0.0021696]
[1742997025884,1.08416846,87792.0,87791.0,0.0021696]
[1742997026079,0.82328646,87792.0,87791.0,0.0021696]
[1742997026300,0.95744646,87792.0,87791.0,0.0021696]
[1742997026522,1.24338826,87792.0,87791.0,0.0021696]
[1742997026722,0.58426626,87792.0,87791.0,0.0021696]
[1742997027929,0.57926626,87792.0,87791.0,0.0021696]
[1742997028328,0.57826626,87792.0,87791.0,0.0021696]
[1742997028790,0.58026626,87792.0,87791.0,0.0021696]
[1742997029195,0.64007751,87792.0,87791.0,0.0021696]
[1742997029631,0.86720051,87792.0,87791.0,0.0021696]
[1742997030240,0.85603004,87792.0,87791.0,0.0021696]
[1742997031282,0.88103004,87792.0,87791.0,0.0021696]
[1742997031483,1.00983004,87792.0,87791.0,0.0021696]
[1742997031707,1.39643004,87792.0,87791.0,0.0021696]
[1742997032329,1.39343004,87792.0,87791.0,0.0021696]
[1742997032566,0.106,87786.0,87778.0,0.0132446]
[1742997032764,0.55884923,87786.0,87778.0,0.0132446]
[1742997032967,4.708446,87786.0,87778.0,0.0132446]
[1742997033167,4.719837,87786.0,87778.0,0.0132446]
[1742997033636,5.131437,87786.0,87778.0,0.0132446]
[1742997033853,5.23884825,87786.0,87778.0,0.0132446]
[1742997034259,4.99963125,87786.0,87778.0,0.0132446]
[1742997034388,1.30283725,87786.0,87778.0,0.0132446]
[1742997034586,1.31422825,87786.0,87778.0,0.0132446]
[1742997034804,0.1,87766.0,87763.0,0.0001696]
[1742997035007,0.40516489,87764.0,87763.0,0.0001696]
[1742997035729,0.42301836,87764.0,87763.0,0.0001696]
[1742997036142,0.42301836,87764.0,87763.0,0.00058114]
[1742997036492,0.55953836,87764.0,87763.0,0.00058114]
[1742997036691,0.56153836,87764.0,87763.0,0.00058114]
[1742997037626,0.56341836,87764.0,87763.0,0.00058114]
[1742997039007,0.97501836,87764.0,87763.0,0.00058114]
[1742997039251,2.69331336,87764.0,87763.0,0.00058114]
[1742997039496,2.71650461,87764.0,87763.0,0.00058114]
[1742997039922,2.79690461,87764.0,87763.0,0.00058114]
[1742997040127,2.82190461,87764.0,87763.0,0.00058114]
[1742997040572,2.82190461,87764.0,87735.0,0.5918]
[1742997040573,0.1,87747.0,87735.0,0.5918]
[1742997040775,0.1,87747.0,87731.0,0.002]
[1742997040776,0.3,87735.0,87731.0,0.002]
[1742997040990,0.04336666,87734.0,87731.0,0.00212349]
[1742997041402,0.3,87732.0,87731.0,0.00212349]
[1742997042558,0.300951,87732.0,87731.0,0.00212349]
[1742997042758,0.302951,87732.0,87731.0,0.00212349]
[1742997043930,0.304951,87732.0,87731.0,0.00212349]
[1742997044746,0.442711,87732.0,87731.0,0.00212349]
[1742997045592,0.442711,87732.0,87703.0,0.0001697]
[1742997045593,0.1,87727.0,87703.0,0.0001697]
[1742997045809,0.3,87706.0,87703.0,0.00041092]
[1742997046016,0.3,87704.0,87703.0,0.00041092]
[1742997046217,0.455949,87704.0,87703.0,0.00041092]
[1742997046643,0.57818,87704.0,87703.0,0.00041092]
[1742997047262,0.99074,87704.0,87703.0,0.00041092]
[1742997047468,0.99074,87704.0,87683.0,0.59204]
[1742997047469,0.1,87701.0,87683.0,0.59204]
[1742997047857,0.3,87699.0,87683.0,0.59204]
[1742997048312,0.00285117,87698.0,87683.0,0.59204]
[1742997048820,0.3,87696.0,87683.0,0.59204]
[1742997049080,0.3,87696.0,87691.0,0.01454085]
[1742997049374,0.15906609,87697.0,87691.0,0.01454085]
[1742997049375,0.3,87694.0,87691.0,0.01454085]
[1742997051103,0.00285094,87693.0,87691.0,0.01454085]
[1742997051855,0.44156,87692.0,87691.0,0.01454085]
[1742997052099,0.3,87691.0,87683.0,0.59204]
[1742997053242,0.142511,87692.0,87683.0,0.59204]
[1742997053471,0.00285135,87691.0,87683.0,0.59204]
[1742997053731,1.40479935,87691.0,87683.0,0.59204]
[1742997054035,1.401948,87691.0,87690.0,0.00589937]
[1742997054307,0.413307,87691.0,87690.0,0.00589937]
[1742997054564,0.3,87691.0,87690.0,0.00589937]
[1742997054813,0.3,87691.0,87690.0,0.00620937]
[1742997055058,0.32106393,87691.0,87690.0,0.00620937]
[1742997055279,0.46386393,87691.0,87690.0,0.00620937]
[1742997055679,0.18192835,87691.0,87690.0,0.00620937]
[1742997055915,0.16086442,87691.0,87690.0,0.00620937]
[1742997056326,0.16186442,87691.0,87690.0,0.00620937]
[1742997056919,0.16086442,87691.0,87690.0,0.00620937]
[1742997057354,0.46086442,87691.0,87690.0,0.00620937]
[1742997058007,0.50933602,87691.0,87690.0,0.00620937]
[1742997058588,0.46086442,87691.0,87690.0,0.00620937]
[1742997059635,0.46086442,87691.0,87690.0,0.00637917]
[1742997059827,0.46186442,87691.0,87690.0,0.00637917]
[1742997060471,0.31786442,87691.0,87690.0,0.00637917]
[1742997060674,0.46134442,87691.0,87690.0,0.00637917]
[1742997061083,0.3,87690.0,87683.0,0.49841917]
[1742997061498,0.40516489,87684.0,87683.0,0.51296002]
[1742997062278,0.40516489,87684.0,87683.0,0.49841917]
[1742997063669,0.54912489,87684.0,87683.0,0.49841917]
[1742997064379,0.3,87683.0,87675.0,0.0001697]
[1742997064583,0.3,87679.0,87675.0,0.0001697]
[1742997064789,0.3,87677.0,87675.0,0.0001697]
[1742997065075,0.68702892,87676.0,87675.0,0.0001697]
[1742997065276,0.92445525,87676.0,87675.0,0.0001697]
[1742997065847,0.94232721,87676.0,87675.0,0.0001697]
[1742997066044,0.9427358,87676.0,87675.0,0.0001697]
[1742997066436,1.2327358,87676.0,87675.0,0.0001697]
[1742997066621,1.0569648,87676.0,87675.0,0.0001697]
[1742997066825,1.0609648,87676.0,87675.0,0.0001697]
[1742997067027,1.6650248,87676.0,87675.0,0.0001697]
[1742997067252,1.4730038,87676.0,87675.0,0.0001697]
[1742997067467,1.6280038,87676.0,87675.0,0.0001697]
[1742997067667,0.569529,87672.0,87671.0,1e-08]
[1742997067869,1.11444149,87672.0,87671.0,1e-08]
[1742997068083,0.1,87648.0,87641.0,0.00207]
[1742997068297,0.3,87643.0,87641.0,0.00207]
[1742997068508,0.54244092,87642.0,87641.0,0.00207]
[1742997068710,0.425223,87642.0,87641.0,0.00207]
[1742997068924,0.46230725,87642.0,87641.0,0.00207]
[1742997069173,0.91990725,87642.0,87641.0,0.00207]
[1742997069382,0.92031558,87642.0,87641.0,0.00207]
[1742997069803,0.84850801,87642.0,87641.0,0.00207]
[1742997070010,0.86724501,87642.0,87641.0,0.00207]
[1742997070227,0.30040833,87642.0,87641.0,0.00207]
[1742997070455,0.44544833,87642.0,87641.0,0.00207]
[1742997071220,0.30140833,87642.0,87641.0,0.00207]
[1742997071429,0.00140833,87642.0,87641.0,0.01661085]
[1742997071630,0.14568833,87642.0,87641.0,0.25622385]
[1742997071827,0.14468833,87642.0,87641.0,0.01661085]
[1742997072147,0.00040833,87642.0,87641.0,0.01661085]
[1742997072349,0.00835933,87642.0,87641.0,0.01661085]
[1742997072551,0.00535933,87642.0,87641.0,0.01661085]
[1742997072760,0.00535933,87642.0,87641.0,0.00207]
[1742997073103,0.14643933,87642.0,87641.0,0.00207]
[1742997073305,0.19108326,87642.0,87641.0,0.00207]
[1742997073437,0.19108326,87642.0,87641.0,0.0022399]
[1742997073873,0.14643933,87642.0,87641.0,0.0022399]
[1742997074277,0.14643933,87642.0,87641.0,0.24498375]
[1742997074681,0.00135933,87642.0,87641.0,0.38189375]
[1742997074889,0.01787416,87653.0,87652.0,0.239583]
[1742997075058,0.4116,87697.0,87671.0,0.011406]
[1742997075259,0.1452,87692.0,87677.0,0.228108]
[1742997075488,0.1452,87692.0,87672.0,0.5926]
[1742997075489,0.1452,87692.0,87689.0,0.011403]
[1742997075662,0.01786761,87689.0,87683.0,0.057504]
[1742997075861,0.01786761,87689.0,87684.0,0.24263085]
[1742997076060,0.01786761,87689.0,87684.0,0.24063085]
[1742997076436,0.01786761,87689.0,87673.0,0.01454085]
[1742997076860,0.01786761,87689.0,87673.0,0.01466436]
[1742997077263,0.01786761,87689.0,87688.0,0.24262185]
[1742997077463,0.01786761,87689.0,87688.0,0.01454085]
[1742997077897,0.81786761,87689.0,87688.0,0.01454085]
[1742997078094,0.8,87689.0,87688.0,0.01454085]
[1742997078526,0.5,87689.0,87688.0,0.01454085]
[1742997078724,0.8,87689.0,87688.0,0.01454085]
[1742997079369,0.8,87689.0,87684.0,0.228091]
[1742997079370,0.3,87688.0,87684.0,0.01454085]
[1742997079772,0.3,87688.0,87673.0,0.40703746]
[1742997079773,0.3,87688.0,87678.0,0.01454085]
[1742997079954,0.3,87688.0,87678.0,0.24264585]
[1742997080295,0.3,87688.0,87684.0,0.01454085]
[1742997080504,0.3,87688.0,87687.0,0.01454085]
[1742997081617,0.5,87689.0,87688.0,0.25402585]
[1742997081833,0.5,87689.0,87688.0,0.01454085]
[1742997082204,0.5,87689.0,87688.0,0.02594485]
[1742997083062,0.5,87689.0,87688.0,0.10504485]
[1742997083265,0.5,87689.0,87688.0,0.15524485]
[1742997084068,0.5,87689.0,87688.0,0.16024485]
[1742997084271,0.0003396,87701.0,87700.0,0.239452]
[1742997084506,0.0003396,87701.0,87700.0,0.25399285]
[1742997085244,0.0003396,87701.0,87700.0,0.25199285]
[1742997085628,0.0003396,87701.0,87700.0,0.25211636]
[1742997085801,0.0003396,87701.0,87700.0,0.25711636]
[1742997086146,0.0013396,87701.0,87700.0,0.01966436]
[1742997086585,0.0023396,87701.0,87700.0,0.02266436]
[1742997086934,0.0023396,87701.0,87700.0,0.03406636]
[1742997087152,0.0023396,87701.0,87700.0,0.0892247]
[1742997087574,0.0023396,87701.0,87700.0,0.03906636]
[1742997087989,0.0003396,87701.0,87700.0,0.02606636]
[1742997088396,0.0023396,87701.0,87700.0,0.03506636]
[1742997088601,0.1464996,87701.0,87700.0,0.00912351]
[1742997088798,0.09254492,87701.0,87700.0,0.00912351]
[1742997089009,0.07789496,87701.0,87700.0,0.00512351]
[1742997089328,0.07789496,87701.0,87700.0,0.00012351]
[1742997089564,0.07916164,87701.0,87700.0,0.01012351]
[1742997089766,0.07916164,87701.0,87700.0,0.00512351]
[1742997089969,0.07816164,87701.0,87700.0,0.00012351]
[1742997091457,0.07816164,87701.0,87700.0,0.0050746]
[1742997091660,0.08626288,87701.0,87700.0,0.0100746]
[1742997091869,2.64687495,87701.0,87700.0,0.0100746]
[1742997092097,2.05881188,87701.0,87700.0,7.46e-05]
[1742997092308,2.07667878,87701.0,87700.0,7.46e-05]
[1742997092486,1.11467854,87701.0,87700.0,7.46e-05]
[1742997092687,1.04828264,87701.0,87700.0,7.46e-05]
[1742997093099,1.05028264,87701.0,87700.0,7.46e-05]
[1742997093317,1.05228264,87701.0,87700.0,7.46e-05]
[1742997093465,1.06368464,87701.0,87700.0,7.46e-05]
[1742997093687,1.14008464,87701.0,87700.0,7.46e-05]
[1742997093996,1.051521,87701.0,87700.0,7.46e-05]
[1742997094173,0.7156,87701.0,87700.0,7.46e-05]
[1742997094390,0.858,87701.0,87700.0,7.46e-05]
[1742997095231,0.4444,87701.0,87700.0,7.46e-05]
[1742997095404,0.1484,87701.0,87700.0,7.46e-05]
[1742997095606,0.1534,87701.0,87700.0,7.46e-05]
[1742997096021,0.1444,87701.0,87700.0,7.46e-05]
[1742997096223,0.1464,87701.0,87700.0,7.46e-05]
[1742997096404,0.1484,87701.0,87700.0,7.46e-05]
[1742997096829,0.1464,87701.0,87700.0,7.46e-05]
[1742997097052,0.1464,87701.0,87700.0,0.0020746]
[1742997097673,0.1444,87701.0,87700.0,0.0020746]
[1742997097891,0.1444,87701.0,87700.0,0.0030746]
[1742997098306,0.1444,87701.0,87700.0,0.0010746]
[1742997098307,0.9444,87701.0,87700.0,0.0010746]
[1742997098518,0.9444,87701.0,87700.0,7.46e-05]
[1742997098738,0.9444,87701.0,87700.0,0.0020746]
[1742997099599,0.9444,87701.0,87600.0,0.00326222]
[1742997099600,0.15,87614.0,87600.0,0.00326222]
[1742997099677,0.30285415,87613.0,87600.0,0.00326222]
[1742997099893,0.005,87633.0,87600.0,0.00326222]
[1742997099894,0.1,87649.0,87626.0,0.00040833]
[1742997100115,0.3,87631.0,87626.0,0.00040833]
[1742997100335,0.10516489,87632.0,87626.0,0.00040833]
[1742997100587,0.3,87631.0,87626.0,0.00040833]
[1742997100815,0.3,87629.0,87626.0,0.00040833]
[1742997101053,0.3,87627.0,87626.0,0.00040833]
[1742997101259,1.04187424,87627.0,87626.0,0.00040833]
[1742997101469,1.04187424,87627.0,87603.0,0.08385566]
[1742997101470,0.011415,87604.0,87603.0,0.08385566]
[1742997101697,0.011415,87604.0,87603.0,0.03385566]
[1742997101698,1.43497394,87604.0,87603.0,0.03385566]
[1742997101897,0.67878649,87604.0,87603.0,0.03385566]
[1742997102068,1.88691749,87604.0,87603.0,0.03385566]
[1742997102445,1.88691749,87604.0,87600.0,0.00326222]
[1742997102446,0.3,87603.0,87600.0,0.00326222]
[1742997102649,0.422042,87603.0,87600.0,0.00326222]
[1742997102870,0.44744,87603.0,87600.0,0.00326222]
[1742997103274,0.14764,87603.0,87600.0,0.00326222]
[1742997103477,0.25049432,87603.0,87600.0,0.00326222]
[1742997103679,0.64993,87603.0,87600.0,0.00326222]
[1742997103885,0.54764,87603.0,87600.0,0.00326222]
[1742997104090,0.3,87603.0,87600.0,0.00326222]
[1742997104512,0.14804,87608.0,87603.0,0.01454085]
[1742997104755,0.1482,87611.0,87603.0,0.01454085]
[1742997104963,0.014804,87608.0,87603.0,0.00954085]
[1742997105165,0.10516489,87620.0,87603.0,0.00954085]
[1742997105372,0.14824,87616.0,87603.0,0.00954085]
[1742997105577,0.10516489,87620.0,87603.0,0.00954085]
[1742997106193,0.00285351,87619.0,87603.0,0.002]
[1742997106401,0.137,87617.0,87603.0,0.002]
[1742997106604,0.137,87617.0,87600.0,0.00326222]
[1742997106605,0.1,87612.0,87600.0,0.00326222]
[1742997106811,0.50947814,87611.0,87600.0,0.00326222]
[1742997106990,0.118841,87610.0,87600.0,0.00326222]
[1742997107309,0.3,87608.0,87600.0,0.00326222]
[1742997107621,0.00246762,87607.0,87600.0,0.00326222]
[1742997107807,0.1,87603.0,87600.0,0.00326222]
[1742997107956,0.40285444,87603.0,87600.0,0.00326222]
[1742997108160,0.40285444,87603.0,87569.0,0.015]
[1742997108161,0.1,87582.0,87569.0,0.015]
[1742997108372,0.65384489,87582.0,87569.0,0.015]
[1742997108983,0.1,87570.0,87569.0,0.015]
[1742997109183,0.559159,87570.0,87569.0,0.015]
[1742997109389,0.907642,87570.0,87569.0,0.005]
[1742997109734,0.51611091,87570.0,87569.0,0.005]
[1742997109943,0.41830162,87570.0,87569.0,0.005]
[1742997110350,0.31830162,87570.0,87569.0,0.005]
[1742997110567,0.46770162,87570.0,87569.0,0.005]
[1742997110714,0.45013178,87570.0,87569.0,0.005]
[1742997110918,2.04874378,87570.0,87569.0,0.005]
[1742997111115,1.22261678,87570.0,87569.0,0.005]
[1742997111316,1.07202478,87570.0,87569.0,0.005]
[1742997111525,1.06166978,87570.0,87569.0,0.005]
[1742997111722,0.3,87569.0,87555.0,0.25312573]
[1742997111929,0.40516489,87556.0,87555.0,0.25312573]
[1742997112556,0.64216489,87556.0,87555.0,0.25312573]
[1742997112715,1.24838189,87556.0,87555.0,0.25312573]
[1742997113478,1.10588489,87556.0,87555.0,0.25312573]
[1742997113614,1.13771505,87556.0,87555.0,0.25312573]
[1742997114276,1.26440905,87556.0,87555.0,0.25312573]
[1742997114677,1.26440905,87556.0,87555.0,0.21864979]
[1742997114902,1.12378163,87556.0,87555.0,0.21864979]
[1742997116298,0.97166163,87556.0,87555.0,0.21864979]
[1742997116638,0.71378163,87556.0,87555.0,0.21864979]
[1742997117670,0.73694761,87556.0,87555.0,0.21864979]
[1742997117872,0.58322761,87556.0,87555.0,0.21864979]
[1742997118077,0.81208345,87556.0,87555.0,0.21864979]
[1742997118282,0.73686761,87556.0,87555.0,0.21864979]
[1742997118484,1.99319761,87556.0,87555.0,0.21864979]
[1742997118690,1.32267461,87556.0,87555.0,0.21864979]
[1742997118896,1.31171061,87556.0,87555.0,0.21864979]
[1742997119480,1.07195561,87556.0,87555.0,0.21864979]
[1742997119657,1.01528061,87556.0,87555.0,0.21864979]
[1742997120506,1.01528061,87556.0,87535.0,0.02]
[1742997120507,0.1,87546.0,87535.0,0.02]
[1742997120658,0.4,87546.0,87535.0,0.02]
[1742997120882,0.673279,87546.0,87535.0,0.02]
[1742997121294,0.69117705,87546.0,87535.0,0.02]
[1742997121543,0.84473705,87546.0,87535.0,0.02]
[1742997121749,0.80473705,87546.0,87535.0,0.02]
[1742997121932,0.70662905,87546.0,87535.0,0.02]
[1742997122162,0.3,87541.0,87535.0,0.02]
[1742997122345,0.45,87539.0,87535.0,0.02]
[1742997122502,1.212803,87539.0,87535.0,0.02]
[1742997122707,1.366483,87539.0,87535.0,0.02]
[1742997123192,0.827497,87539.0,87535.0,0.02]
[1742997123404,0.60348,87539.0,87535.0,0.02]
[1742997123605,0.60388766,87539.0,87535.0,0.02]
[1742997124035,0.60384766,87539.0,87535.0,0.02]
[1742997125088,0.00040766,87539.0,87535.0,0.02]
[1742997125297,0.00040766,87539.0,87535.0,0.248477]
[1742997125507,0.00040766,87539.0,87538.0,0.2400645]
[1742997125720,0.00040766,87539.0,87538.0,0.01471035]
[1742997125925,0.00040766,87539.0,87538.0,0.0001695]
[1742997126343,0.15372766,87539.0,87538.0,0.0001695]
[1742997126976,0.01830405,87539.0,87538.0,0.0001695]
[1742997127189,0.17142405,87539.0,87538.0,0.0001695]
[1742997127435,0.01830405,87539.0,87538.0,0.2286415]
[1742997127642,0.01830405,87539.0,87538.0,0.25460535]
[1742997128286,0.01830405,87539.0,87538.0,0.01471035]
[1742997128721,0.01830405,87539.0,87538.0,0.0001695]
[1742997129553,0.01830405,87539.0,87538.0,0.02613335]
[1742997130281,0.01830405,87539.0,87538.0,0.15063335]
[1742997130482,0.01830405,87539.0,87538.0,0.15563335]
[1742997130665,0.3,87555.0,87544.0,0.01454085]
[1742997130899,0.3,87555.0,87544.0,0.02596285]
[1742997131139,0.3,87555.0,87539.0,0.01454085]
[1742997131364,0.3,87555.0,87538.0,0.12479308]
[1742997131365,0.3,87553.0,87538.0,0.00029308]
[1742997131581,0.3,87551.0,87538.0,0.00029308]
[1742997131789,0.00285563,87550.0,87538.0,0.00029308]
[1742997132122,0.3,87551.0,87538.0,0.00029308]
[1742997132557,0.3,87543.0,87538.0,0.00029308]
[1742997132782,0.04051649,87542.0,87538.0,0.00029308]
[1742997133210,0.00285597,87541.0,87538.0,0.00029308]
[1742997134097,0.3,87543.0,87538.0,0.00029308]
[1742997134317,0.3,87541.0,87538.0,0.00029308]
[1742997134705,0.3,87539.0,87538.0,0.00029308]
[1742997135433,0.10516489,87544.0,87538.0,0.00029308]
[1742997135434,0.15416,87544.0,87538.0,0.00029308]
[1742997135792,0.3,87543.0,87538.0,0.00029308]
[1742997136408,0.33,87543.0,87538.0,0.00029308]
[1742997136987,0.03,87543.0,87538.0,0.00029308]
[1742997137192,0.3,87551.0,87538.0,0.00029308]
[1742997137193,0.45408,87551.0,87538.0,0.00029308]
[1742997137820,0.3,87551.0,87538.0,0.00029308]
[1742997138022,0.3,87552.0,87538.0,0.00029308]
[1742997138639,0.00285559,87551.0,87538.0,0.00029308]
[1742997138846,0.01789626,87549.0,87538.0,0.00029308]
[1742997139608,0.0028556,87548.0,87538.0,0.00029308]
[1742997140060,0.40516489,87539.0,87538.0,0.00029308]
[1742997140277,0.63298089,87539.0,87538.0,0.00029308]
[1742997140489,0.3,87538.0,87535.0,0.01879308]
[1742997140704,0.00285633,87537.0,87535.0,0.01891664]
[1742997140914,0.45364,87536.0,87535.0,0.01891664]
[1742997141128,0.720048,87536.0,87535.0,0.01891664]
[1742997141336,0.45364,87536.0,87535.0,0.01891664]
[1742997141965,0.3,87536.0,87535.0,0.01891664]
[1742997142178,0.10516489,87539.0,87535.0,0.01891664]
[1742997142400,0.0813,87573.0,87542.0,0.228459]
[1742997142616,0.0813,87573.0,87536.0,0.01454085]
[1742997142617,0.1534,87555.0,87536.0,0.01454085]
[1742997142826,0.02268255,87561.0,87536.0,0.01454085]
[1742997143038,0.3,87554.0,87536.0,0.01454085]
[1742997143449,0.3,87552.0,87536.0,0.01454085]
[1742997143666,0.3,87552.0,87535.0,0.01891664]
[1742997143904,0.3,87549.0,87535.0,0.01891664]
[1742997144298,0.35590641,87549.0,87535.0,0.01891664]
[1742997144713,0.00285552,87548.0,87535.0,0.01891664]
[1742997145142,0.3,87546.0,87535.0,0.01891664]
[1742997145341,0.02299615,87540.0,87535.0,0.01891664]
[1742997145545,0.0028563,87539.0,87535.0,0.01891664]
[1742997145700,0.3,87536.0,87535.0,0.01891664]
[1742997145900,1.109135,87536.0,87535.0,1e-08]
[1742997146150,0.86496,87536.0,87535.0,1e-08]
[1742997146388,0.1,87528.0,87522.0,7e-05]
[1742997146590,0.40516489,87526.0,87525.0,0.00040766]
[1742997146789,1.00653761,87526.0,87525.0,0.00040766]
[1742997147403,0.1,87514.0,87507.0,0.02532769]
[1742997147550,0.01036236,87508.0,87507.0,0.02532769]
[1742997147950,0.05512637,87508.0,87507.0,0.02532769]
[1742997148165,0.01036236,87508.0,87507.0,0.02532769]
[1742997148375,0.43895441,87508.0,87486.0,0.59336]
[1742997148579,0.01078678,87501.0,87486.0,0.59336]
[1742997149032,0.01078678,87501.0,87499.0,0.240001]
[1742997149228,0.01078678,87501.0,87500.0,0.53055463]
[1742997149435,0.02869099,87501.0,87500.0,0.56512663]
[1742997149810,0.02869099,87501.0,87500.0,0.55058578]
[1742997150346,0.02869099,87501.0,87500.0,0.57655463]
[1742997150541,0.02869099,87501.0,87500.0,1.17003463]
[1742997150743,0.00040781,87526.0,87522.0,0.011425]
[1742997150945,0.00040781,87526.0,87525.0,0.239931]
[1742997151119,0.00040781,87526.0,87525.0,0.25447185]
[1742997151358,0.00040781,87526.0,87525.0,0.01454085]
[1742997152532,0.29325083,87533.0,87525.0,0.01454085]
[1742997152773,0.29325083,87533.0,87525.0,0.0001236]
[1742997152774,0.34928491,87533.0,87525.0,0.0001236]
[1742997153177,0.1646,87532.0,87525.0,0.0001236]
[1742997153424,0.16745612,87532.0,87525.0,0.0001236]
[1742997153604,0.1646,87532.0,87525.0,0.0001236]
[1742997153978,0.00285625,87531.0,87525.0,0.0001236]
[1742997154212,0.1646,87530.0,87525.0,0.0001236]
[1742997154622,0.3,87529.0,87525.0,0.0001236]
[1742997155180,0.29871581,87529.0,87525.0,0.0001236]
[1742997155592,0.02113951,87528.0,87525.0,0.0001236]
[1742997155960,0.02113951,87528.0,87527.0,0.02596585]
[1742997156091,0.02113951,87528.0,87527.0,0.2040027]
[1742997156479,0.02113951,87528.0,87527.0,0.15226585]
[1742997156915,0.02113951,87528.0,87527.0,0.14084085]
[1742997157380,0.01789807,87529.0,87527.0,0.14084085]
[1742997157989,0.01789807,87529.0,87528.0,0.02596485]
[1742997159127,0.01789807,87529.0,87528.0,0.01454085]
[1742997159739,0.01789807,87529.0,87528.0,0.02596485]
[1742997159976,0.01789807,87529.0,87528.0,0.14267519]
[1742997160621,0.01789807,87529.0,87528.0,0.03096485]
[1742997161268,0.01789807,87529.0,87528.0,0.01454085]
[1742997161492,0.01789807,87529.0,87528.0,0.25946285]
[1742997161707,0.0003392,87539.0,87538.0,0.239895]
[1742997161911,0.16384,87584.0,87555.0,0.239848]
[1742997162125,0.16384,87584.0,87555.0,0.25438885]
[1742997162331,0.3,87583.0,87555.0,0.01454085]
[1742997162543,0.00285448,87582.0,87555.0,0.01454085]
[1742997162722,0.00285448,87582.0,87555.0,0.01384085]
[1742997163336,0.00285448,87582.0,87555.0,0.0001236]
[1742997163549,0.3,87565.0,87555.0,0.0001236]
[1742997163764,0.0028554,87564.0,87555.0,0.0001236]
[1742997163983,0.3,87565.0,87555.0,0.0001236]
[1742997164228,0.00285568,87564.0,87555.0,0.0001236]
[1742997164470,0.3,87565.0,87555.0,0.0001236]
[1742997164929,0.00285525,87564.0,87555.0,0.0001236]
[1742997165128,0.3,87565.0,87555.0,0.0001236]
[1742997166130,0.01823429,87556.0,87555.0,0.0001236]
[1742997166338,0.48275429,87556.0,87555.0,0.0001236]
[1742997166763,0.36650972,87556.0,87555.0,0.0001236]
[1742997167029,0.48275429,87556.0,87555.0,0.0001236]
[1742997167443,0.48271429,87556.0,87555.0,0.0001236]
[1742997168067,0.01823429,87556.0,87555.0,0.0001236]
[1742997169388,0.18255429,87556.0,87555.0,0.0001236]
[1742997170668,0.01823429,87556.0,87555.0,0.0001236]
[1742997171283,0.06645772,87556.0,87555.0,0.0001236]
[1742997171835,0.36931351,87556.0,87555.0,0.0001236]
[1742997172034,0.34856263,87556.0,87555.0,0.0001236]
[1742997172237,0.83672963,87556.0,87555.0,0.0001236]
[1742997172452,0.1,87551.0,87538.0,0.5934]
[1742997172661,0.3,87555.0,87538.0,0.59352305]
[1742997172662,0.40516489,87539.0,87538.0,0.59352305]
[1742997173054,0.56916489,87539.0,87538.0,0.59352305]
[1742997173252,0.464,87539.0,87538.0,0.59352305]
[1742997175472,0.164,87539.0,87538.0,0.59352305]
[1742997175879,0.3,87546.0,87539.0,0.01454085]
[1742997176485,0.01789454,87545.0,87539.0,0.01454085]
[1742997180471,0.01789454,87545.0,87538.0,0.59352305]
[1742997181458,0.00285546,87544.0,87538.0,0.59352305]
[1742997181957,0.3,87542.0,87538.0,0.59352305]
[1742997182169,0.3,87540.0,87538.0,0.59352305]
[1742997182397,2.384858,87539.0,87538.0,0.00012305]
[1742997182603,2.62475,87539.0,87538.0,0.00012305]
[1742997183027,0.1,87528.0,87513.0,0.59336]
[1742997183277,0.40516489,87514.0,87513.0,0.59336]
[1742997185684,0.57052489,87514.0,87513.0,0.59336]
[1742997185905,0.40516489,87514.0,87513.0,0.59336]
[1742997186335,0.4230668,87514.0,87513.0,0.59336]
[1742997186550,0.5886268,87514.0,87513.0,0.59336]
[1742997188617,1.3793858,87514.0,87513.0,0.59336]
[1742997188799,0.8902128,87514.0,87513.0,0.59336]
[1742997189033,0.91131851,87514.0,87513.0,0.59336]
[1742997189237,0.60973251,87514.0,87513.0,0.59336]
[1742997190691,0.80212051,87514.0,87513.0,0.59336]
[1742997190870,0.60973251,87514.0,87513.0,0.59336]
[1742997192415,0.76407251,87514.0,87513.0,0.59336]
[1742997192638,0.5806106,87514.0,87513.0,0.59336]
[1742997192843,0.7464506,87514.0,87513.0,0.59336]
[1742997193532,0.5921106,87514.0,87513.0,0.59336]
[1742997193740,0.57100489,87514.0,87513.0,0.59336]
[1742997194147,0.3,87513.0,87500.0,0.50475538]
[1742997194552,0.10516489,87514.0,87508.0,0.239975]
[1742997194751,0.10516489,87514.0,87504.0,0.01454085]
[1742997194889,0.10516489,87514.0,87504.0,0.02596885]
[1742997194890,0.3,87513.0,87504.0,0.02596885]
[1742997195091,0.3,87513.0,87503.0,0.01454085]
[1742997195337,0.16632,87517.0,87508.0,0.01454085]
[1742997195541,0.16656,87523.0,87505.0,0.01454085]
[1742997195784,0.10516489,87520.0,87505.0,0.01454085]
[1742997195979,0.3,87519.0,87505.0,0.01454085]
[1742997196186,0.3,87519.0,87505.0,0.24309885]
[1742997196416,0.3,87519.0,87505.0,0.01454085]
[1742997196620,0.3,87519.0,87505.0,0.24309685]
[1742997196830,0.3,87519.0,87514.0,0.011426]
[1742997197029,0.10516489,87520.0,87518.0,0.228524]
[1742997197260,0.10516489,87520.0,87519.0,0.24306185]
[1742997197462,0.00012231,87539.0,87527.0,0.01454085]
[1742997197683,0.00012231,87539.0,87529.0,0.01454085]
[1742997197890,0.30012231,87539.0,87529.0,0.01454085]
[1742997198098,0.01949695,87530.0,87515.0,0.0819]
[1742997198276,0.01949695,87530.0,87509.0,0.01454085]
[1742997198530,0.01949695,87530.0,87511.0,0.228542]
[1742997198735,0.01949695,87530.0,87509.0,0.01454085]
[1742997199162,0.01949695,87530.0,87509.0,0.24308785]
[1742997199377,0.01949695,87530.0,87509.0,0.01454085]
[1742997199775,0.01949695,87530.0,87517.0,0.39522259]